[Event "MČR mládeže v rapid šachu 2024 H10"]
[Site "Harrachov, Czech Republic"]
[Date "????.??.??"]
[Round "5.8"]
[White "Bartak Tobias"]
[Black "Burel Jan"]
[Result "1/2-1/2"]
[TimeControl "20+5"]
[WhiteFideId "23753544"]
[BlackFideId "23754907"]
[WhiteElo "1563"]
[BlackElo "1566"]

1. e4 {[%clk 00:20:06]} {[%emt 00:00:03]} e5 {[%clk 00:20:08]} {[%emt
00:00:02]} 2. Nf3 {[%clk 00:20:09]} {[%emt 00:00:02]} Nc6 {[%clk 00:20:11]}
{[%emt 00:00:02]} 3. Bb5 {[%clk 00:20:13]} {[%emt 00:00:01]} Nf6 {[%clk
00:20:12]} {[%emt 00:00:03]} 4. O-O {[%clk 00:20:16]} {[%emt 00:00:02]} d6
{[%clk 00:20:12]} {[%emt 00:00:05]} 5. c3 {[%clk 00:20:10]} {[%emt 00:00:11]}
a6 {[%clk 00:20:03]} {[%emt 00:00:14]} 6. Bxc6+ {[%clk 00:19:36]} {[%emt
00:00:39]} bxc6 {[%clk 00:20:04]} {[%emt 00:00:04]} 7. d4 {[%clk 00:19:38]}
{[%emt 00:00:03]} Bg4 {[%clk 00:19:51]} {[%emt 00:00:18]} 8. dxe5 {[%clk
00:19:24]} {[%emt 00:00:19]} Bxf3 {[%clk 00:19:48]} {[%emt 00:00:07]} 9. Qxf3
{[%clk 00:19:27]} {[%emt 00:00:02]} dxe5 {[%clk 00:19:49]} {[%emt 00:00:04]} 10.
Rd1 {[%clk 00:19:28]} {[%emt 00:00:04]} Bd6 {[%clk 00:19:40]} {[%emt 00:00:14]}
11. Bg5 {[%clk 00:19:00]} {[%emt 00:00:33]} Qe7 {[%clk 00:19:38]} {[%emt
00:00:07]} 12. Nd2 {[%clk 00:17:32]} {[%emt 00:01:34]} O-O {[%clk 00:19:16]}
{[%emt 00:00:27]} 13. Nc4 {[%clk 00:17:14]} {[%emt 00:00:23]} Qe6 {[%clk
00:18:48]} {[%emt 00:00:29]} 14. Nxd6 {[%clk 00:16:50]} {[%emt 00:00:33]} cxd6
{[%clk 00:18:49]} {[%emt 00:00:03]} 15. Bxf6 {[%clk 00:16:53]} {[%emt
00:00:02]} gxf6 {[%clk 00:18:51]} {[%emt 00:00:03]} 16. Qh5 {[%clk 00:16:45]}
{[%emt 00:00:13]} f5 {[%clk 00:16:42]} {[%emt 00:02:14]} 17. exf5 {[%clk
00:16:17]} {[%emt 00:00:34]} Qe7 {[%clk 00:16:01]} {[%emt 00:00:45]} 18. Rd3
{[%clk 00:15:37]} {[%emt 00:00:46]} f6 {[%clk 00:16:00]} {[%emt 00:00:05]} 19.
Rg3+ {[%clk 00:15:23]} {[%emt 00:00:20]} Kh8 {[%clk 00:15:55]} {[%emt
00:00:08]} 20. Rd1 {[%clk 00:14:20]} {[%emt 00:01:09]} Rg8 {[%clk 00:15:53]}
{[%emt 00:00:07]} 21. Rdd3 {[%clk 00:14:22]} {[%emt 00:00:04]} Rxg3 {[%clk
00:15:50]} {[%emt 00:00:07]} 22. Rxg3 {[%clk 00:14:23]} {[%emt 00:00:05]} Rg8
{[%clk 00:15:42]} {[%emt 00:00:09]} 23. Rg6 {[%clk 00:13:11]} {[%emt 00:01:21]}
Rxg6 {[%clk 00:15:09]} {[%emt 00:00:38]} 24. fxg6 {[%clk 00:13:14]} {[%emt
00:00:02]} c5 {[%clk 00:14:56]} {[%emt 00:00:18]} 25. Qh6 {[%clk 00:12:45]}
{[%emt 00:00:34]} Kg8 {[%clk 00:14:25]} {[%emt 00:00:35]} 26. gxh7+ {[%clk
00:12:45]} {[%emt 00:00:07]} Qxh7 {[%clk 00:14:27]} {[%emt 00:00:02]} 27. Qxh7+
{[%clk 00:12:47]} {[%emt 00:00:04]} Kxh7 {[%clk 00:14:30]} {[%emt 00:00:02]} 28.
Kf1 {[%clk 00:12:50]} {[%emt 00:00:02]} d5 {[%clk 00:14:33]} {[%emt 00:00:02]}
29. Ke2 {[%clk 00:12:53]} {[%emt 00:00:02]} d4 {[%clk 00:14:32]} {[%emt
00:00:05]} 30. cxd4 {[%clk 00:12:53]} {[%emt 00:00:06]} exd4 {[%clk 00:14:35]}
{[%emt 00:00:02]} 31. a3 {[%clk 00:12:44]} {[%emt 00:00:14]} a5 {[%clk
00:14:36]} {[%emt 00:00:03]} 32. Kd3 {[%clk 00:12:41]} {[%emt 00:00:08]} a4
{[%clk 00:14:19]} {[%emt 00:00:21]} 33. b4 {[%clk 00:12:24]} {[%emt 00:00:22]}
cxb4 {[%clk 00:13:27]} {[%emt 00:00:58]} 34. Kxd4 {[%clk 00:11:59]} {[%emt
00:00:30]} b3 {[%clk 00:13:29]} {[%emt 00:00:02]} 35. Kc3 {[%clk 00:11:59]}
{[%emt 00:00:03]} Kg6 {[%clk 00:13:32]} {[%emt 00:00:04]} 36. f3 {[%clk
00:11:51]} {[%emt 00:00:14]} f5 {[%clk 00:13:31]} {[%emt 00:00:06]} 37. h3
{[%emt 00:00:34]} 1/2-1/2



[ePGN "0.1;DGT LiveChess/2.2.6"]

[Event "MČR mládeže v rapid šachu 2024 H10"]
[Site "Harrachov, Czech Republic"]
[Date "????.??.??"]
[Round "6.1"]
[White "Zidek Damian"]
[Black "Strihavka Petr"]
[Result "1-0"]
[TimeControl "20+5"]
[WhiteFideId "23761652"]
[BlackFideId "23760702"]
[WhiteElo "1763"]
[BlackElo "1546"]

1. d4 {[%clk 00:20:07]} {[%emt 00:00:01]} d5 {[%clk 00:20:07]} {[%emt
00:00:03]} 2. c4 {[%clk 00:20:11]} e6 {[%clk 00:20:10]} {[%emt 00:00:02]} 3.
Nc3 {[%clk 00:20:15]} Nf6 {[%clk 00:20:14]} {[%emt 00:00:02]} 4. cxd5 {[%clk
00:20:19]} {[%emt 00:00:01]} Nxd5 {[%clk 00:20:06]} {[%emt 00:00:12]} 5. e4
{[%clk 00:20:23]} {[%emt 00:00:02]} Nf6 {[%clk 00:19:54]} {[%emt 00:00:16]} 6.
Nf3 {[%clk 00:20:24]} {[%emt 00:00:04]} Bb4 {[%clk 00:19:35]} {[%emt 00:00:23]}
7. Qc2 {[%clk 00:20:28]} {[%emt 00:00:03]} O-O {[%clk 00:19:19]} {[%emt
00:00:21]} 8. Bd3 {[%clk 00:20:28]} {[%emt 00:00:04]} h6 {[%clk 00:18:55]}
{[%emt 00:00:30]} 9. O-O {[%clk 00:20:25]} {[%emt 00:00:08]} b6 {[%clk
00:18:40]} {[%emt 00:00:18]} 10. a3 {[%clk 00:20:23]} {[%emt 00:00:09]} Be7
{[%clk 00:18:24]} {[%emt 00:00:20]} 11. e5 {[%clk 00:20:20]} {[%emt 00:00:09]}
Nd5 {[%clk 00:18:23]} {[%emt 00:00:06]} 12. Nxd5 {[%clk 00:20:22]} {[%emt
00:00:03]} exd5 {[%clk 00:18:25]} {[%emt 00:00:03]} 13. Bf4 {[%clk 00:19:56]}
{[%emt 00:00:30]} c5 {[%clk 00:17:21]} {[%emt 00:01:09]} 14. Qd2 {[%clk
00:19:15]} {[%emt 00:00:46]} g5 {[%clk 00:16:13]} {[%emt 00:01:13]} 15. Be3
{[%clk 00:19:10]} {[%emt 00:00:09]} Bg4 {[%clk 00:15:39]} {[%emt 00:00:39]} 16.
h4 {[%clk 00:18:31]} {[%emt 00:00:45]} Bxf3 {[%clk 00:15:13]} {[%emt 00:00:31]}
17. gxf3 {[%clk 00:18:35]} {[%emt 00:00:02]} cxd4 {[%clk 00:14:55]} {[%emt
00:00:22]} 18. Bxd4 {[%clk 00:18:32]} {[%emt 00:00:08]} Nc6 {[%clk 00:14:56]}
{[%emt 00:00:02]} 19. Bc3 {[%clk 00:17:47]} {[%emt 00:00:51]} d4 {[%clk
00:14:58]} {[%emt 00:00:04]} 20. Bb4 {[%clk 00:17:51]} {[%emt 00:00:02]} Bxb4
{[%clk 00:14:28]} {[%emt 00:00:35]} 21. axb4 {[%clk 00:17:50]} {[%emt
00:00:06]} Nxe5 {[%clk 00:14:30]} {[%emt 00:00:02]} 22. Be4 {[%clk 00:17:04]}
{[%emt 00:00:50]} Rc8 {[%clk 00:14:05]} {[%emt 00:00:30]} 23. f4 {[%clk
00:15:31]} {[%emt 00:01:38]} Nc4 {[%clk 00:13:33]} {[%emt 00:00:37]} 24. Qe2
{[%clk 00:15:26]} {[%emt 00:00:10]} f6 {[%clk 00:11:58]} {[%emt 00:01:40]} 25.
Qh5 {[%clk 00:14:16]} {[%emt 00:01:13]} Qe8 {[%clk 00:11:46]} {[%emt 00:00:18]}
26. Qxh6 {[%clk 00:13:28]} {[%emt 00:00:51]} Qxe4 {[%clk 00:11:41]} {[%emt
00:00:11]} 27. hxg5 {[%clk 00:11:21]} {[%emt 00:02:12]} Qh7 {[%clk 00:11:42]}
{[%emt 00:00:03]} 28. Qxh7+ {[%clk 00:10:38]} {[%emt 00:00:48]} Kxh7 {[%clk
00:11:45]} {[%emt 00:00:02]} 29. Rxa7+ {[%clk 00:10:28]} {[%emt 00:00:14]} Kg8
{[%clk 00:11:34]} {[%emt 00:00:17]} 30. g6 {[%clk 00:10:07]} {[%emt 00:00:24]}
Nxb2 {[%clk 00:11:05]} {[%emt 00:00:36]} 31. Kg2 {[%clk 00:09:57]} {[%emt
00:00:12]} Nd3 {[%clk 00:04:19]} {[%emt 00:06:54]} 32. Kg3 {[%clk 00:09:54]}
{[%emt 00:00:07]} Rc1 {[%clk 00:04:22]} {[%emt 00:00:03]} 33. Rxc1 {[%clk
00:09:34]} {[%emt 00:00:25]} Nxc1 {[%clk 00:04:25]} {[%emt 00:00:02]} 34. Rd7
{[%clk 00:08:50]} {[%emt 00:00:49]} d3 {[%clk 00:04:27]} {[%emt 00:00:03]} 35.
f5 {[%clk 00:08:45]} {[%emt 00:00:10]} Re8 {[%clk 00:03:56]} {[%emt 00:00:35]}
36. Kh4 {[%clk 00:08:16]} {[%emt 00:00:32]} Re2 {[%clk 00:03:13]} {[%emt
00:00:52]} 37. Rd8+ {[%clk 00:05:56]} {[%emt 00:02:25]} Kg7 {[%clk 00:03:16]}
{[%emt 00:00:01]} 38. Rd7+ {[%clk 00:06:00]} {[%emt 00:00:01]} Kf8 {[%clk
00:02:56]} {[%emt 00:00:25]} 39. g7+ {[%clk 00:05:44]} {[%emt 00:00:21]} Kg8
{[%clk 00:02:59]} {[%emt 00:00:01]} 40. Kh5 {[%clk 00:05:43]} {[%emt 00:00:06]}
Re8 {[%clk 00:01:10]} {[%emt 00:01:55]} 41. Kg6 {[%clk 00:05:25]} {[%emt
00:00:22]} Ne2 {[%clk 00:01:08]} {[%emt 00:00:07]} 42. Kxf6 {[%clk 00:05:03]}
{[%emt 00:00:27]} Nf4 {[%clk 00:00:36]} {[%emt 00:00:30]} 43. Kg5 {[%clk
00:04:28]} {[%emt 00:00:44]} Nh3+ {[%clk 00:00:26]} {[%emt 00:00:18]} 44. Kh6
{[%clk 00:04:19]} {[%emt 00:00:15]} Nxf2 {[%clk 00:00:16]} {[%emt 00:00:15]} 45.
f6 {[%clk 00:04:14]} {[%emt 00:00:09]} Ng4+ {[%emt 00:00:24]} 46. Kg5 Ne5
{[%emt 00:00:07]} 47. Re7 {[%emt 00:00:11]} 1-0



[ePGN "0.1;DGT LiveChess/2.2.6"]

[Event "MČR mládeže v rapid šachu 2024 H10"]
[Site "Harrachov, Czech Republic"]
[Date "????.??.??"]
[Round "6.2"]
[White "Lutskiy Mikhail"]
[Black "Stepnicka Filip"]
[Result "1-0"]
[TimeControl "20+5"]
[WhiteFideId "23744308"]
[BlackFideId "23771542"]
[WhiteElo "1729"]
[BlackElo "1531"]

1. e4 {[%clk 00:20:09]} e5 {[%clk 00:20:07]} {[%emt 00:00:03]} 2. Nf3 {[%clk
00:20:11]} {[%emt 00:00:02]} Nc6 {[%clk 00:20:10]} {[%emt 00:00:03]} 3. Bc4
{[%clk 00:20:14]} {[%emt 00:00:02]} Bc5 {[%clk 00:20:12]} {[%emt 00:00:03]} 4.
c3 {[%clk 00:20:16]} {[%emt 00:00:02]} Nf6 {[%clk 00:20:13]} {[%emt 00:00:04]}
5. d3 {[%emt 00:00:03]} d6 {[%clk 00:20:09]} {[%emt 00:00:07]} 6. O-O {[%clk
00:20:05]} {[%emt 00:00:20]} O-O {[%clk 00:20:12]} {[%emt 00:00:03]} 7. Nbd2
{[%clk 00:20:06]} {[%emt 00:00:03]} Bg4 {[%clk 00:20:01]} {[%emt 00:00:17]} 8.
b4 {[%clk 00:19:42]} {[%emt 00:00:29]} Bb6 {[%clk 00:20:01]} {[%emt 00:00:05]}
9. a4 {[%clk 00:19:46]} {[%emt 00:00:02]} a6 {[%clk 00:20:02]} {[%emt
00:00:03]} 10. Re1 {[%clk 00:19:47]} {[%emt 00:00:03]} Qd7 {[%clk 00:19:36]}
{[%emt 00:00:31]} 11. h3 {[%clk 00:18:18]} {[%emt 00:01:34]} Bh5 {[%clk
00:19:12]} {[%emt 00:00:29]} 12. Nf1 {[%clk 00:18:16]} {[%emt 00:00:08]} Rfe8
{[%clk 00:19:10]} {[%emt 00:00:07]} 13. Ng3 {[%clk 00:18:17]} {[%emt 00:00:03]}
Bg6 {[%clk 00:19:12]} {[%emt 00:00:04]} 14. Nh4 {[%clk 00:17:37]} {[%emt
00:00:44]} Rad8 {[%clk 00:18:42]} {[%emt 00:00:34]} 15. Bg5 {[%clk 00:16:37]}
{[%emt 00:01:06]} Qe7 {[%clk 00:17:41]} {[%emt 00:01:07]} 16. Nhf5 {[%clk
00:16:21]} {[%emt 00:00:21]} Qf8 {[%clk 00:17:11]} {[%emt 00:00:34]} 17. Bxf6
{[%clk 00:16:03]} {[%emt 00:00:24]} gxf6 {[%clk 00:17:11]} {[%emt 00:00:05]} 18.
Qg4 {[%clk 00:16:00]} {[%emt 00:00:08]} Kh8 {[%clk 00:16:45]} {[%emt 00:00:31]}
19. Qh4 {[%clk 00:15:35]} {[%emt 00:00:30]} Re6 {[%clk 00:15:59]} {[%emt
00:00:51]} 20. Bxe6 {[%clk 00:14:32]} {[%emt 00:01:08]} fxe6 {[%clk 00:16:01]}
{[%emt 00:00:03]} 21. Ne3 {[%clk 00:14:34]} {[%emt 00:00:03]} Bxe3 {[%clk
00:15:56]} {[%emt 00:00:11]} 22. fxe3 {[%clk 00:14:37]} {[%emt 00:00:03]} d5
{[%clk 00:15:35]} {[%emt 00:00:26]} 23. Rf1 {[%clk 00:14:15]} {[%emt 00:00:25]}
f5 {[%clk 00:15:23]} {[%emt 00:00:17]} 24. exf5 {[%clk 00:14:17]} {[%emt
00:00:03]} exf5 {[%clk 00:15:24]} {[%emt 00:00:04]} 25. Qg5 {[%clk 00:14:01]}
{[%emt 00:00:20]} Ne7 {[%clk 00:15:11]} {[%emt 00:00:19]} 26. e4 {[%clk
00:13:43]} {[%emt 00:00:22]} dxe4 {[%clk 00:15:10]} {[%emt 00:00:06]} 27. dxe4
{[%clk 00:13:45]} {[%emt 00:00:03]} f4 {[%clk 00:15:12]} {[%emt 00:00:03]} 28.
Qxe5+ {[%clk 00:13:43]} {[%emt 00:00:08]} Qg7 {[%clk 00:14:39]} {[%emt
00:00:48]} 29. Qxg7+ {[%clk 00:13:38]} {[%emt 00:00:09]} Kxg7 {[%clk 00:14:42]}
{[%emt 00:00:02]} 30. Rxf4 {[%clk 00:13:39]} {[%emt 00:00:04]} Rd3 {[%clk
00:14:40]} {[%emt 00:00:07]} 31. Rf3 {[%clk 00:13:38]} {[%emt 00:00:05]} Rxf3
{[%clk 00:14:36]} {[%emt 00:00:11]} 32. gxf3 {[%clk 00:13:40]} {[%emt
00:00:03]} b5 {[%clk 00:14:28]} {[%emt 00:00:13]} 33. axb5 {[%clk 00:13:38]}
{[%emt 00:00:07]} axb5 {[%clk 00:14:31]} {[%emt 00:00:02]} 34. Ra7 {[%clk
00:13:41]} {[%emt 00:00:02]} Kf6 {[%emt 00:00:14]} 35. Rxc7 {[%clk 00:13:41]}
{[%emt 00:00:02]} h5 {[%clk 00:14:23]} {[%emt 00:00:06]} 36. h4 {[%clk
00:13:40]} {[%emt 00:00:07]} Bf7 {[%clk 00:14:07]} {[%emt 00:00:21]} 37. f4
{[%clk 00:13:28]} {[%emt 00:00:17]} Ke6 {[%clk 00:14:09]} {[%emt 00:00:03]} 38.
e5 {[%clk 00:13:23]} {[%emt 00:00:11]} Bg6 {[%clk 00:14:05]} {[%emt 00:00:08]}
39. Rb7 {[%clk 00:12:44]} {[%emt 00:00:42]} Bd3 {[%clk 00:14:06]} {[%emt
00:00:05]} 40. Nxh5 {[%clk 00:12:31]} {[%emt 00:00:17]} Nf5 {[%clk 00:13:40]}
{[%emt 00:00:32]} 41. Ng7+ {[%clk 00:12:27]} {[%emt 00:00:09]} Nxg7 {[%clk
00:13:43]} {[%emt 00:00:02]} 42. Rxg7 {[%clk 00:12:30]} {[%emt 00:00:02]} Kf5
{[%clk 00:13:37]} {[%emt 00:00:11]} 43. Rf7+ {[%clk 00:11:56]} {[%emt
00:00:37]} Kg4 {[%clk 00:13:41]} {[%emt 00:00:04]} 44. e6 {[%clk 00:11:59]}
{[%emt 00:00:01]} Bc4 {[%clk 00:13:43]} {[%emt 00:00:03]} 45. f5 {[%clk
00:12:00]} {[%emt 00:00:05]} Kxh4 {[%clk 00:13:46]} {[%emt 00:00:01]} 46. Rg7
{[%clk 00:12:03]} {[%emt 00:00:01]} Bxe6 {[%clk 00:13:45]} {[%emt 00:00:06]} 47.
fxe6 {[%clk 00:12:07]} {[%emt 00:00:01]} Kh5 {[%clk 00:13:46]} {[%emt
00:00:04]} 48. e7 {[%clk 00:12:11]} {[%emt 00:00:01]} Kh6 {[%clk 00:13:45]}
{[%emt 00:00:06]} 49. Rg2 {[%clk 00:12:14]} {[%emt 00:00:02]} Kh7 {[%clk
00:13:44]} {[%emt 00:00:06]} 50. e8=R {[%clk 00:12:12]} {[%emt 00:00:07]} Kh6
{[%clk 00:13:43]} {[%emt 00:00:06]} 51. Rh8# {[%clk 00:12:15]} {[%emt
00:00:01]} 1-0



[ePGN "0.1;DGT LiveChess/2.2.6"]

[Event "MČR mládeže v rapid šachu 2024 H10"]
[Site "Harrachov, Czech Republic"]
[Date "????.??.??"]
[Round "6.3"]
[White "Vo Daniel"]
[Black "Trejbal Jindrich"]
[Result "1-0"]
[TimeControl "20+5"]
[WhiteFideId "23761229"]
[BlackFideId "23743948"]
[WhiteElo "1679"]
[BlackElo "1631"]

1. e4 {[%clk 00:20:07]} {[%emt 00:00:03]} e5 {[%clk 00:20:07]} {[%emt
00:00:03]} 2. Nf3 {[%clk 00:20:00]} {[%emt 00:00:12]} Nc6 {[%clk 00:20:04]}
{[%emt 00:00:08]} 3. d4 {[%clk 00:19:56]} {[%emt 00:00:09]} exd4 {[%clk
00:20:02]} {[%emt 00:00:07]} 4. Bc4 {[%clk 00:19:59]} {[%emt 00:00:02]} Bc5
{[%clk 00:19:14]} {[%emt 00:00:54]} 5. c3 {[%clk 00:19:54]} {[%emt 00:00:10]}
Nge7 {[%clk 00:18:31]} {[%emt 00:00:48]} 6. cxd4 {[%clk 00:19:42]} {[%emt
00:00:17]} Bb4+ {[%clk 00:18:24]} {[%emt 00:00:12]} 7. Nc3 {[%clk 00:19:23]}
{[%emt 00:00:23]} d5 {[%clk 00:17:28]} {[%emt 00:01:03]} 8. exd5 {[%clk
00:19:03]} {[%emt 00:00:25]} Nxd5 {[%clk 00:17:22]} {[%emt 00:00:11]} 9. O-O
{[%clk 00:18:42]} {[%emt 00:00:26]} Bxc3 {[%clk 00:16:23]} {[%emt 00:01:04]} 10.
bxc3 {[%clk 00:18:16]} {[%emt 00:00:31]} O-O {[%clk 00:16:01]} {[%emt
00:00:26]} 11. Bb2 {[%clk 00:17:24]} {[%emt 00:00:58]} Be6 {[%clk 00:15:18]}
{[%emt 00:00:49]} 12. Bd3 {[%clk 00:16:16]} {[%emt 00:01:13]} Nf4 {[%clk
00:13:44]} {[%emt 00:01:39]} 13. Be4 {[%clk 00:15:08]} {[%emt 00:01:12]} Bd5
{[%clk 00:12:29]} {[%emt 00:01:21]} 14. Bc2 {[%clk 00:13:56]} {[%emt 00:01:16]}
Qd7 {[%clk 00:10:28]} {[%emt 00:02:07]} 15. Bc1 {[%clk 00:11:29]} {[%emt
00:02:31]} Qg4 {[%clk 00:08:29]} {[%emt 00:02:04]} 16. Bxf4 {[%clk 00:10:57]}
{[%emt 00:00:37]} Qxf4 {[%clk 00:08:31]} {[%emt 00:00:03]} 17. Qd3 {[%clk
00:10:40]} {[%emt 00:00:22]} f5 {[%clk 00:07:22]} {[%emt 00:01:14]} 18. Bb3
{[%clk 00:09:00]} {[%emt 00:01:46]} Bxb3 {[%clk 00:07:07]} {[%emt 00:00:18]} 19.
axb3 {[%clk 00:09:02]} {[%emt 00:00:03]} Rfe8 {[%clk 00:06:38]} {[%emt
00:00:35]} 20. Rfe1 {[%clk 00:08:09]} {[%emt 00:00:57]} Re4 {[%clk 00:04:58]}
{[%emt 00:01:45]} 21. Qc4+ {[%clk 00:05:59]} {[%emt 00:02:15]} Kh8 {[%clk
00:04:22]} {[%emt 00:00:42]} 22. Qf7 {[%clk 00:05:35]} {[%emt 00:00:28]} Qg4
{[%clk 00:03:24]} {[%emt 00:01:03]} 23. Ne5 {[%clk 00:05:11]} {[%emt 00:00:29]}
Nxe5 {[%clk 00:03:01]} {[%emt 00:00:28]} 24. dxe5 {[%clk 00:05:11]} {[%emt
00:00:05]} Qg6 {[%clk 00:02:20]} {[%emt 00:00:47]} 25. Qxc7 {[%clk 00:04:20]}
{[%emt 00:00:55]} Rxe1+ {[%clk 00:01:16]} {[%emt 00:01:08]} 26. Rxe1 {[%clk
00:04:18]} {[%emt 00:00:07]} Qc6 {[%clk 00:01:15]} {[%emt 00:00:06]} 27. Qxc6
{[%clk 00:03:31]} {[%emt 00:00:53]} bxc6 {[%clk 00:01:17]} {[%emt 00:00:03]} 28.
f4 {[%clk 00:03:33]} {[%emt 00:00:03]} Kg8 {[%clk 00:01:13]} {[%emt 00:00:09]}
29. Kf2 {[%clk 00:03:37]} {[%emt 00:00:01]} Kf7 {[%clk 00:01:12]} {[%emt
00:00:06]} 30. Ke3 {[%clk 00:03:41]} {[%emt 00:00:01]} Rd8 {[%clk 00:01:00]}
{[%emt 00:00:17]} 31. Re2 {[%clk 00:03:26]} {[%emt 00:00:21]} Ke6 {[%clk
00:00:53]} {[%emt 00:00:11]} 32. Ra2 {[%clk 00:03:02]} {[%emt 00:00:30]} Rd7
{[%clk 00:00:40]} {[%emt 00:00:18]} 33. c4 {[%clk 00:02:13]} {[%emt 00:00:53]}
Rb7 {[%clk 00:00:29]} {[%emt 00:00:17]} 34. Ra3 {[%clk 00:01:21]} {[%emt
00:00:57]} h6 {[%clk 00:00:17]} {[%emt 00:00:17]} 35. Kd4 {[%clk 00:00:58]}
{[%emt 00:00:27]} g5 {[%clk 00:00:06]} {[%emt 00:00:16]} 36. g3 {[%clk
00:00:50]} {[%emt 00:00:13]} gxf4 {[%clk 00:00:10]} 37. gxf4 {[%clk 00:00:53]}
{[%emt 00:00:01]} Rg7 {[%clk 00:00:14]} {[%emt 00:00:01]} 38. Kc5 {[%clk
00:00:54]} {[%emt 00:00:05]} Rc7 {[%clk 00:00:15]} {[%emt 00:00:04]} 39. Ra2
{[%clk 00:00:44]} {[%emt 00:00:14]} Rb7 {[%clk 00:00:18]} {[%emt 00:00:02]} 40.
b4 {[%clk 00:00:42]} {[%emt 00:00:07]} Kd7 {[%clk 00:00:13]} {[%emt 00:00:11]}
41. Rg2 {[%clk 00:00:45]} {[%emt 00:00:02]} Ke8 {[%clk 00:00:12]} {[%emt
00:00:06]} 42. Rg6 {[%clk 00:00:37]} {[%emt 00:00:12]} Kf7 {[%clk 00:00:10]}
{[%emt 00:00:07]} 43. Rxh6 {[%clk 00:00:39]} {[%emt 00:00:04]} Kg7 {[%clk
00:00:14]} {[%emt 00:00:02]} 44. Rxc6 {[%clk 00:00:42]} {[%emt 00:00:03]} Rd7
{[%clk 00:00:14]} {[%emt 00:00:04]} 45. Rd6 {[%clk 00:00:40]} {[%emt 00:00:07]}
Rc7+ {[%clk 00:00:18]} {[%emt 00:00:01]} 46. Kd5 {[%clk 00:00:44]} {[%emt
00:00:01]} Rb7 {[%clk 00:00:22]} {[%emt 00:00:01]} 47. b5 {[%clk 00:00:48]} Kf8
{[%clk 00:00:23]} {[%emt 00:00:04]} 48. Kc6 {[%clk 00:00:51]} {[%emt 00:00:02]}
Rb6+ {[%clk 00:00:27]} {[%emt 00:00:02]} 49. Kc7 {[%clk 00:00:55]} {[%emt
00:00:01]} Rxd6 {[%emt 00:00:16]} 50. exd6 {[%clk 00:00:58]} Kf7 {[%clk
00:00:20]} 51. d7 {[%clk 00:00:57]} {[%emt 00:00:05]} Ke6 {[%clk 00:00:23]}
{[%emt 00:00:02]} 52. d8=Q {[%clk 00:00:55]} {[%emt 00:00:07]} a6 {[%clk
00:00:27]} {[%emt 00:00:02]} 53. Qe8+ {[%clk 00:00:54]} {[%emt 00:00:06]} Kf6
{[%clk 00:00:31]} {[%emt 00:00:02]} 54. Qe5+ {[%clk 00:00:57]} {[%emt
00:00:01]} Kg6 {[%clk 00:00:35]} {[%emt 00:00:02]} 55. Qe6+ {[%clk 00:01:01]}
Kh7 {[%clk 00:00:35]} {[%emt 00:00:05]} 56. Qxf5 {[%clk 00:01:05]} {[%emt
00:00:02]} Kg7 {[%clk 00:00:39]} {[%emt 00:00:01]} 57. Qg5 {[%clk 00:01:08]}
{[%emt 00:00:01]} Kf7 {[%clk 00:00:42]} {[%emt 00:00:02]} 58. b6 {[%clk
00:01:09]} {[%emt 00:00:05]} a5 {[%clk 00:00:45]} {[%emt 00:00:02]} 59. b7
{[%clk 00:01:12]} {[%emt 00:00:01]} a4 {[%clk 00:00:48]} {[%emt 00:00:02]} 60.
b8=R {[%clk 00:01:10]} {[%emt 00:00:07]} a3 {[%clk 00:00:50]} {[%emt 00:00:02]}
61. Qf5 {[%clk 00:01:11]} {[%emt 00:00:04]} Ke7 {[%clk 00:00:52]} {[%emt
00:00:03]} 62. Rd8 {[%clk 00:01:10]} {[%emt 00:00:06]} a2 {[%clk 00:00:50]}
{[%emt 00:00:07]} 63. Rd7 {[%clk 00:01:13]} {[%emt 00:00:03]} Ke8 {[%clk
00:00:53]} {[%emt 00:00:02]} 64. Qf7+ {[%clk 00:01:15]} {[%emt 00:00:03]} 1-0



[ePGN "0.1;DGT LiveChess/2.2.6"]